bitfinex/quotes_BTCUSD_20250709
["timestamp","ask_amount","ask_price","bid_price","bid_amount"]
[1752030204969,0.01985386,108770.0,108760.0,0.68382574]
[1752030205405,0.00919303,108770.0,108760.0,0.68382574]
[1752030205831,0.00919295,108770.0,108760.0,0.65654242]
[1752030206262,0.20224336,108780.0,108760.0,0.56509935]
[1752030206475,0.01838547,108780.0,108770.0,0.29988255]
[1752030206688,0.02757765,108780.0,108770.0,0.32184314]
[1752030206922,0.02757765,108780.0,108770.0,0.33905218]
[1752030207567,0.02857765,108780.0,108770.0,0.33905218]
[1752030207794,0.01938496,108780.0,108770.0,0.42174649]
[1752030208112,0.01838496,108780.0,108770.0,0.42174649]
[1752030208164,0.01938496,108780.0,108770.0,0.4131339]
[1752030208371,0.03057765,108780.0,108770.0,0.4131339]
[1752030208618,0.02857765,108780.0,108770.0,0.4131339]
[1752030208837,0.001,108780.0,108770.0,0.4131339]
[1752030208987,0.01119219,108780.0,108770.0,0.35900436]
[1752030209204,0.002,108780.0,108770.0,0.35900436]
[1752030209405,0.002,108780.0,108770.0,0.46498214]
[1752030209621,0.002,108780.0,108770.0,0.49273924]
[1752030210594,0.001,108780.0,108770.0,0.49173924]
[1752030211009,0.001,108780.0,108770.0,0.49473924]
[1752030211667,0.002,108780.0,108770.0,0.49636997]
[1752030212533,0.002,108780.0,108770.0,0.49639247]
[1752030213105,0.002,108780.0,108770.0,0.52401247]
[1752030217293,0.002,108780.0,108770.0,0.67401247]
[1752030217502,0.002,108780.0,108770.0,1.01401247]
[1752030217901,0.002,108780.0,108770.0,1.06401247]
[1752030219795,0.002,108780.0,108770.0,1.20301247]
[1752030220853,0.002,108780.0,108770.0,1.20301088]
[1752030223265,0.002,108780.0,108770.0,1.50251088]
[1752030224543,0.002,108780.0,108770.0,1.45251088]
[1752030224972,0.0111921,108780.0,108770.0,1.45251088]
[1752030226316,0.002,108780.0,108770.0,1.45251088]
[1752030226956,0.0111921,108780.0,108770.0,1.45251088]
[1752030227169,0.02038445,108780.0,108770.0,1.45251088]
[1752030227378,0.0111921,108780.0,108770.0,1.45251088]
[1752030227619,0.02038437,108780.0,108770.0,1.45251088]
[1752030227850,0.0111921,108780.0,108770.0,1.45251088]
[1752030229358,0.0111921,108780.0,108770.0,1.15301088]
[1752030229594,0.0111921,108780.0,108770.0,1.13577934]
[1752030229817,0.22262682,108780.0,108770.0,0.98250395]
[1752030230051,0.21343523,108780.0,108770.0,0.56365058]
[1752030230255,0.21343523,108780.0,108770.0,0.45319917]
[1752030230471,0.21343523,108780.0,108770.0,0.53577625]
[1752030230699,0.21343523,108780.0,108770.0,0.5541629]
[1752030231190,0.22262809,108780.0,108770.0,0.5633555]
[1752030231403,0.03877077,108780.0,108770.0,0.5633555]
[1752030231587,0.22262809,108780.0,108770.0,0.55416239]
[1752030231973,0.22262809,108780.0,108770.0,0.54496919]
[1752030232139,0.21343565,108780.0,108770.0,0.54496919]
[1752030232347,0.21343565,108780.0,108770.0,0.53577591]
[1752030232957,0.21343565,108780.0,108770.0,0.54496919]
[1752030234893,0.20424296,108780.0,108770.0,0.53577591]
[1752030235102,0.19505018,108780.0,108770.0,0.18001401]
[1752030235333,0.21755732,108780.0,108770.0,0.22765708]
[1752030235566,0.22755732,108780.0,108770.0,0.22765708]
[1752030237098,0.22755732,108780.0,108770.0,0.23685079]
[1752030237412,0.22738874,108780.0,108770.0,0.23685079]
[1752030237635,0.22738874,108780.0,108770.0,0.22765708]
[1752030240985,0.22738874,108780.0,108770.0,0.25133489]
[1752030241411,0.22738874,108780.0,108770.0,0.2605286]
[1752030241628,0.22738874,108780.0,108770.0,0.26972222]
[1752030242016,0.22738874,108780.0,108770.0,0.2605286]
[1752030242445,0.22738874,108780.0,108770.0,0.36640071]
[1752030242824,0.21138874,108780.0,108770.0,0.50436274]
[1752030243327,0.21138874,108780.0,108770.0,0.55946344]
[1752030244814,0.21138874,108780.0,108770.0,0.559458]
[1752030247346,0.21138874,108780.0,108770.0,0.36639015]
[1752030248183,0.21138874,108780.0,108770.0,0.36638674]
[1752030250456,0.21188874,108780.0,108770.0,0.22734674]
[1752030250666,0.22818874,108780.0,108770.0,0.36634674]
[1752030250876,0.22818874,108780.0,108770.0,0.28376966]
[1752030252333,0.22818874,108780.0,108770.0,0.22734674]
[1752030252543,0.22818874,108780.0,108770.0,0.32509487]
[1752030252749,0.22818874,108780.0,108770.0,0.28376966]
[1752030252956,0.22818874,108780.0,108770.0,0.1860937]
[1752030253164,0.22818874,108780.0,108770.0,0.3250537]
[1752030253829,0.22818874,108780.0,108770.0,0.269953]
[1752030254254,0.22818874,108780.0,108770.0,0.26995487]
[1752030254728,0.22818874,108780.0,108770.0,0.26996155]
[1752030256027,0.22818874,108780.0,108770.0,0.13100155]
[1752030256257,0.36722874,108780.0,108770.0,0.07100155]
[1752030256686,0.70722874,108780.0,108770.0,0.02967083]
[1752030258684,0.70722874,108780.0,108770.0,0.02321515]
[1752030258901,0.70722874,108780.0,108770.0,0.006]
[1752030265818,0.70722874,108780.0,108770.0,0.01460767]
[1752030266436,0.70722874,108780.0,108770.0,0.03827804]
[1752030267062,0.56818874,108780.0,108770.0,0.03827804]
[1752030267263,0.70718874,108780.0,108770.0,0.03827804]
[1752030268271,0.70718874,108780.0,108770.0,0.03827746]
[1752030271105,0.69088874,108780.0,108770.0,0.03827746]
[1752030273133,0.67468874,108780.0,108770.0,0.03827746]
[1752030273366,0.69048874,108780.0,108770.0,0.03827746]
[1752030275966,0.70628874,108780.0,108770.0,0.03827746]
[1752030282340,0.79772567,108780.0,108770.0,0.03827746]
[1752030282541,0.82535567,108780.0,108770.0,0.03830343]
[1752030282937,0.68635567,108780.0,108770.0,0.03830343]
[1752030283155,0.56231874,108780.0,108770.0,0.03230343]
[1752030283366,0.67289732,108780.0,108770.0,0.10412812]
[1752030283540,0.67301732,108780.0,108770.0,0.10412812]
[1752030283724,0.67501732,108780.0,108770.0,0.10412812]
[1752030285031,0.67497732,108780.0,108770.0,0.10412812]
[1752030285200,0.67497732,108780.0,108770.0,0.10413276]
[1752030287859,0.67497732,108780.0,108770.0,0.09552567]
[1752030288089,0.67497732,108780.0,108770.0,0.10414966]
[1752030289318,0.67497732,108780.0,108770.0,0.15925036]
[1752030290544,0.67497732,108780.0,108770.0,0.14925036]
[1752030293921,0.67489732,108780.0,108770.0,0.14925036]
[1752030294256,0.67489732,108780.0,108770.0,0.09414966]
[1752030294458,0.67489732,108780.0,108770.0,0.14925036]
[1752030295182,0.67489732,108780.0,108770.0,0.09414966]
[1752030300587,0.67489732,108780.0,108770.0,0.06828024]
[1752030300745,0.66489732,108780.0,108770.0,0.09414576]
[1752030301124,0.66489732,108780.0,108770.0,0.0942084]
[1752030302577,0.66489732,108780.0,108770.0,0.10067483]
[1752030304254,0.66489732,108780.0,108770.0,0.08558656]
[1752030304400,0.66489732,108780.0,108770.0,0.10067471]
[1752030306392,0.66489732,108780.0,108770.0,0.15577541]
[1752030306591,0.66489732,108780.0,108770.0,0.11438868]
[1752030306829,0.66489732,108780.0,108770.0,0.15577684]
[1752030307234,0.66489732,108780.0,108770.0,0.13853287]
[1752030307444,0.66489732,108780.0,108770.0,0.15577705]
[1752030308043,0.66489732,108780.0,108770.0,0.15577737]
[1752030310254,0.66489732,108780.0,108770.0,0.15577964]
[1752030312323,1.27412814,108780.0,108770.0,0.15577964]
[1752030315809,1.27412814,108780.0,108770.0,0.15578823]
[1752030317550,1.2738454,108780.0,108770.0,0.15578823]
[1752030319877,1.27375347,108780.0,108770.0,0.15578823]
[1752030321476,1.27375347,108780.0,108770.0,0.12883268]
[1752030324315,1.27375347,108780.0,108770.0,0.12020981]
[1752030324529,1.27375347,108780.0,108770.0,0.12883751]
[1752030329444,1.27375347,108780.0,108770.0,0.12885992]
[1752030330034,1.27375347,108780.0,108770.0,0.12886008]
[1752030330593,1.27375347,108780.0,108770.0,0.12023238]
[1752030333248,1.27375347,108780.0,108770.0,0.11376576]
[1752030333456,1.3964904,108780.0,108770.0,0.11376576]
[1752030333657,1.73665701,108780.0,108770.0,0.01725449]
[1752030334263,1.3964904,108780.0,108770.0,0.01725449]
[1752030337361,0.19306777,108770.0,108760.0,0.04145738]
[1752030337567,0.72804011,108770.0,108760.0,0.04145738]
[1752030338279,0.72804011,108770.0,108760.0,4.681e-05]
[1752030338677,0.4234247,108770.0,108760.0,4.681e-05]
[1752030338995,0.72804011,108770.0,108760.0,4.681e-05]
[1752030339199,0.72804011,108770.0,108760.0,0.00204681]
[1752030339829,0.72904011,108770.0,108760.0,0.04445738]
[1752030340002,0.72904011,108770.0,108760.0,0.00304681]
[1752030340789,0.72904011,108770.0,108760.0,0.01166481]
[1752030341075,0.72904011,108770.0,108760.0,0.02890082]
[1752030341966,0.4244247,108770.0,108760.0,0.02890082]
[1752030342192,0.72904011,108770.0,108760.0,0.02890082]
[1752030343310,0.72904011,108770.0,108760.0,0.03536322]
[1752030345725,0.4244247,108770.0,108760.0,0.03536322]
[1752030345951,0.72904011,108770.0,108760.0,0.03536322]
[1752030348229,0.20326122,108770.0,108760.0,0.11696834]
[1752030348464,0.63760318,108770.0,108760.0,0.31005394]
[1752030348896,0.33298777,108770.0,108760.0,0.11050594]
[1752030349101,0.63760318,108770.0,108760.0,0.1169671]
[1752030349427,0.63764318,108770.0,108760.0,0.1169671]
[1752030349631,0.49868318,108770.0,108760.0,0.1169671]
[1752030349868,0.63764318,108770.0,108760.0,0.1169671]
[1752030350274,0.62844964,108770.0,108760.0,0.10777255]
[1752030351114,0.48948964,108770.0,108760.0,0.10777255]
[1752030351325,0.62840964,108770.0,108760.0,0.10777255]
[1752030353669,0.48948964,108770.0,108760.0,0.10777255]
[1752030353979,0.62840964,108770.0,108760.0,0.10777255]
[1752030357385,0.62840964,108770.0,108760.0,0.16287325]
[1752030357590,0.62840964,108770.0,108760.0,0.16287379]
[1752030359229,0.93302505,108770.0,108760.0,0.16287379]
[1752030360429,0.93302505,108770.0,108760.0,0.16287961]
[1752030361132,0.93302505,108770.0,108760.0,0.07677891]
[1752030361268,0.94952505,108770.0,108760.0,0.07677891]
[1752030365190,0.94952505,108770.0,108760.0,0.07678151]
[1752030365401,0.34029423,108770.0,108760.0,0.07678151]
[1752030365614,0.94952505,108770.0,108760.0,0.07678151]
[1752030367526,0.93302505,108770.0,108760.0,0.07678151]
[1752030367921,0.93302505,108770.0,108760.0,0.07678432]
[1752030370238,1.02446198,108770.0,108760.0,0.07678432]
[1752030370910,1.02446198,108770.0,108760.0,0.07679215]
[1752030371563,1.05666198,108770.0,108760.0,0.03538158]
[1752030375254,1.39666198,108770.0,108760.0,0.03538158]
[1752030378593,1.39466198,108770.0,108760.0,0.03538158]
[1752030379192,1.37846198,108770.0,108760.0,0.03538158]
[1752030381673,1.36246198,108770.0,108760.0,0.03538158]
[1752030385328,1.36246198,108770.0,108760.0,0.03537698]
[1752030386042,1.36246198,108770.0,108760.0,0.02675653]
[1752030386258,1.36246198,108770.0,108760.0,0.03537735]
[1752030387762,0.75323116,108770.0,108760.0,0.03537735]
[1752030387966,1.36246198,108770.0,108760.0,0.07675837]
[1752030388160,1.36246198,108770.0,108760.0,0.07675772]
[1752030388394,1.36246198,108770.0,108760.0,0.09295772]
[1752030388566,1.36246198,108770.0,108760.0,0.0515767]
[1752030389958,1.22354198,108770.0,108760.0,0.0676767]
[1752030390146,1.36246198,108770.0,108760.0,0.0676767]
[1752030391014,1.36246198,108770.0,108760.0,0.06768393]
[1752030391214,1.35346198,108770.0,108760.0,0.06768393]
[1752030394060,1.35346198,108770.0,108760.0,0.06768882]
[1752030395334,1.35346198,108770.0,108760.0,0.10044454]
[1752030395760,1.35346198,108770.0,108760.0,0.08319394]
[1752030395957,1.35346198,108770.0,108760.0,0.07672783]
[1752030400750,1.21454198,108770.0,108760.0,0.07672783]
[1752030401104,1.35346198,108770.0,108760.0,0.07672783]
[1752030409339,0.81848964,108770.0,108760.0,0.07672783]
[1752030409550,0.95740964,108770.0,108760.0,0.13190253]
[1752030410009,1.26202505,108770.0,108760.0,0.13190253]
[1752030410218,1.26202505,108770.0,108760.0,0.07672783]
[1752030421284,1.26202505,108770.0,108760.0,0.08319538]
[1752030421703,1.26202505,108770.0,108760.0,0.09181864]
[1752030425553,1.26202505,108770.0,108760.0,0.10906532]
[1752030428511,1.26202505,108770.0,108760.0,0.10906642]
[1752030429486,1.26202505,108770.0,108760.0,0.09296642]
[1752030429682,1.26202505,108770.0,108760.0,0.07676642]
[1752030430883,1.26202505,108770.0,108760.0,0.10796642]
[1752030431802,1.26202505,108770.0,108760.0,0.09286642]
[1752030434688,1.26202505,108770.0,108760.0,0.07676642]
[1752030435288,1.25292505,108770.0,108760.0,0.07676642]
[1752030435838,1.25292505,108770.0,108760.0,0.05951906]
[1752030436291,1.34436198,108770.0,108760.0,0.05951906]
[1752030436727,1.36076198,108770.0,108760.0,0.05305151]
[1752030436946,1.36076198,108770.0,108760.0,0.04442783]
[1752030437583,1.36076198,108770.0,108760.0,0.00304681]
[1752030438049,1.66537739,108770.0,108760.0,0.00304681]
[1752030438272,1.68197739,108770.0,108760.0,0.00304681]
[1752030438530,1.37736198,108770.0,108760.0,0.00304681]
[1752030438968,1.37736198,108770.0,108760.0,0.00104681]
[1752030439184,1.37736198,108770.0,108760.0,0.00204681]
[1752030439621,1.37736198,108770.0,108760.0,0.00104681]
[1752030440089,1.38036198,108770.0,108760.0,0.00204681]
[1752030441204,1.37936198,108770.0,108760.0,0.00104681]
[1752030441631,1.38036198,108770.0,108760.0,0.00204681]
[1752030441834,1.37936198,108770.0,108760.0,0.00104681]
[1752030442246,1.38336198,108770.0,108760.0,0.00204681]
[1752030447266,1.68797739,108770.0,108760.0,0.00204681]
[1752030450791,1.71813606,108770.0,108760.0,0.00204681]
[1752030451458,1.74577106,108770.0,108760.0,0.00204681]
[1752030452726,1.71561239,108770.0,108760.0,0.00204681]
[1752030452936,1.75116346,108770.0,108760.0,0.00204681]
[1752030471476,1.73456346,108770.0,108760.0,0.00204681]
[1752030472513,1.82600039,108770.0,108760.0,0.00204681]
[1752030473898,1.80960039,108770.0,108760.0,0.00204681]
[1752030474540,1.71816346,108770.0,108760.0,0.00204681]
[1752030480970,1.57924346,108770.0,108760.0,0.01744681]
[1752030481190,1.68261239,108770.0,108760.0,0.03274681]
[1752030482453,1.68261239,108770.0,108760.0,0.05000707]
[1752030483297,1.68261239,108770.0,108760.0,0.02577966]
[1752030485286,1.75154287,108770.0,108760.0,0.02577966]
[1752030485719,1.68261239,108770.0,108760.0,0.02577966]
[1752030486482,1.68261239,108770.0,108760.0,0.03440969]
[1752030489323,1.68261239,108770.0,108760.0,0.03440957]
[1752030494885,1.68261239,108770.0,108760.0,0.03440891]
[1752030496361,1.69761239,108770.0,108760.0,0.03440891]
[1752030496788,1.68261239,108770.0,108760.0,0.03440891]
[1752030500376,1.77679644,108770.0,108760.0,0.03440891]
[1752030500588,1.77679644,108770.0,108760.0,0.03440828]
[1752030501065,1.71816346,108770.0,108760.0,0.03440828]
[1752030502924,1.75016346,108770.0,108760.0,0.03440828]
[1752030503549,1.75016346,108770.0,108760.0,0.03440779]
[1752030505229,1.71816346,108770.0,108760.0,0.03440779]
[1752030506146,1.71816346,108770.0,108760.0,0.03440631]
[1752030508262,1.71816346,108770.0,108760.0,0.02577747]
[1752030508400,1.71816346,108770.0,108760.0,0.03440603]
[1752030509238,1.80960039,108770.0,108760.0,0.03440603]
[1752030515956,1.71816346,108770.0,108760.0,0.03440603]
[1752030523216,1.71816346,108770.0,108760.0,0.00204681]
[1752030523430,1.71816346,108770.0,108760.0,0.03440731]
[1752030523637,1.71816346,108770.0,108760.0,0.03440733]
[1752030525987,1.71816346,108770.0,108760.0,0.03440748]
[1752030526228,1.71816346,108770.0,108760.0,0.01714837]
[1752030526436,1.71816346,108770.0,108760.0,0.03440748]
[1752030529256,1.71816346,108770.0,108760.0,0.03440768]
[1752030530543,1.71816346,108770.0,108760.0,0.06620768]
[1752030534662,1.71812346,108770.0,108760.0,0.06620768]
[1752030535894,1.78391603,108770.0,108760.0,0.06620768]
[1752030536911,1.71812346,108770.0,108760.0,0.06620768]
[1752030537644,1.71812346,108770.0,108760.0,0.06620805]
[1752030545484,1.71812346,108770.0,108760.0,0.06620733]
[1752030547577,1.71812346,108770.0,108760.0,0.03440733]
[1752030552655,1.71812346,108770.0,108760.0,0.04980733]
[1752030553554,1.73363914,108770.0,108760.0,0.04980733]
[1752030553781,1.71812346,108770.0,108760.0,0.04980733]
[1752030554013,1.71812346,108770.0,108760.0,0.06620733]
[1752030557775,1.71792346,108770.0,108760.0,0.06620733]
[1752030558014,1.71792346,108770.0,108760.0,0.06620641]
[1752030559171,1.72708273,108770.0,108760.0,0.06620641]
[1752030563400,1.81851966,108770.0,108760.0,0.06620641]
[1752030563845,1.72708273,108770.0,108760.0,0.04980641]
[1752030564058,1.72618673,108770.0,108760.0,0.04980641]
[1752030566046,1.72618673,108770.0,108760.0,0.03440641]
[1752030571236,1.72618673,108770.0,108760.0,0.03440682]
[1752030572838,1.72618673,108770.0,108760.0,0.03440684]
[1752030573073,1.72618673,108770.0,108760.0,0.0344078]
[1752030574640,1.72618673,108770.0,108760.0,1e-08]
[1752030575248,0.53308551,108760.0,108750.0,0.0323]
[1752030575463,1.67724867,108760.0,108750.0,0.0323]
[1752030577203,1.67824867,108760.0,108750.0,0.0333]
[1752030577714,1.67924867,108760.0,108750.0,0.0333]
[1752030586620,1.67924867,108760.0,108750.0,0.04192914]
[1752030586801,1.67924867,108760.0,108750.0,0.04840099]
[1752030587158,1.67924867,108760.0,108750.0,0.06565922]
[1752030589008,1.67924867,108760.0,108750.0,0.06565919]
[1752030594263,1.68570614,108760.0,108750.0,0.04268737]
[1752030595034,1.68570614,108760.0,108750.0,0.03193852]
[1752030595255,0.18392495,108740.0,108730.0,0.04142038]
[1752030595474,1.03912624,108740.0,108730.0,0.04142038]
[1752030596630,1.04012624,108740.0,108730.0,0.04442038]
[1752030597063,1.03366877,108740.0,108730.0,0.05089215]
[1752030597496,1.03466877,108740.0,108730.0,0.07129215]
[1752030598171,1.03466877,108740.0,108730.0,0.08689215]
[1752030601231,1.02603769,108740.0,108730.0,0.08689215]
[1752030602501,1.02603769,108740.0,108730.0,0.08689211]
[1752030603180,1.01093329,108740.0,108730.0,0.08689211]
[1752030603384,0.40170247,108740.0,108730.0,0.08689211]
[1752030603592,1.01093329,108740.0,108730.0,0.08689211]
[1752030603746,0.98935558,108740.0,108730.0,0.08689211]
[1752030603950,0.38012476,108740.0,108730.0,0.08689211]
[1752030604172,0.97209342,108740.0,108730.0,0.08689211]
[1752030604372,0.83321342,108740.0,108730.0,0.08689211]
[1752030604578,0.97209342,108740.0,108730.0,0.08689211]
[1752030606424,0.97209342,108740.0,108730.0,0.0868917]
[1752030607252,0.96346234,108740.0,108730.0,0.09552113]
[1752030608562,0.96346234,108740.0,108730.0,0.09552138]
[1752030609446,0.9591468,108740.0,108730.0,0.09552136]
[1752030610478,0.34991598,108740.0,108730.0,0.09552136]
[1752030610728,0.9591468,108740.0,108730.0,0.09552136]
[1752030611138,0.9591468,108740.0,108730.0,0.09552134]
[1752030613363,0.95051572,108740.0,108730.0,0.09552134]
[1752030613862,0.95051572,108740.0,108730.0,0.08904933]
[1752030614092,0.95051572,108740.0,108730.0,0.09552143]
[1752030614308,0.94404241,108740.0,108730.0,0.09552143]
[1752030616702,0.94404241,108740.0,108730.0,0.08904938]
[1752030616909,0.94404241,108740.0,108730.0,0.09552155]
[1752030618308,1.24865782,108740.0,108730.0,0.09552155]
[1752030618560,0.94404241,108740.0,108730.0,0.09552155]
[1752030619383,0.93541106,108740.0,108730.0,0.09552155]
[1752030619605,0.9321355,108740.0,108730.0,0.09552155]
[1752030619809,0.93139977,108740.0,108730.0,0.09552155]
[1752030620727,0.93139977,108740.0,108730.0,0.07992155]
[1752030624261,0.92708413,108740.0,108730.0,0.07992155]
[1752030625324,0.91845284,108740.0,108730.0,0.07992155]
[1752030627548,0.77957284,108740.0,108730.0,0.07992155]
[1752030627751,0.91845284,108740.0,108730.0,0.07992155]
[1752030628306,0.91845284,108740.0,108730.0,0.07992048]
[1752030628619,0.30922202,108740.0,108730.0,0.07992048]
[1752030629060,0.91845284,108740.0,108730.0,0.09512048]
[1752030629527,0.91845284,108740.0,108730.0,0.09511469]
[1752030629909,1.59336825,108740.0,108730.0,0.06351469]
[1752030630890,1.59236825,108740.0,108730.0,0.05951469]
[1752030631163,1.59236825,108740.0,108730.0,0.01810051]
[1752030631373,1.28775284,108740.0,108730.0,0.01810051]
[1752030631592,1.59236825,108740.0,108730.0,0.01810051]
[1752030631800,1.59236825,108740.0,108730.0,0.01809924]
[1752030632152,0.67952202,108740.0,108730.0,0.01909924]
[1752030632390,1.28775284,108740.0,108730.0,0.01809924]
[1752030632910,1.59536825,108740.0,108730.0,0.01909924]
[1752030634923,1.29083284,108740.0,108730.0,0.01909924]
[1752030635906,1.27573284,108740.0,108730.0,0.01909924]
[1752030636340,1.26053284,108740.0,108730.0,0.01909924]
[1752030636664,1.27473284,108740.0,108730.0,0.01609924]
[1752030638403,1.27473284,108740.0,108730.0,0.01709924]
[1752030638839,1.30237284,108740.0,108730.0,0.01709924]
[1752030639669,1.30237284,108740.0,108730.0,0.01609924]
[1752030640077,1.30437284,108740.0,108730.0,0.01709924]
[1752030640283,1.32007284,108740.0,108730.0,0.01709924]
[1752030640873,1.32007284,108740.0,108730.0,0.01062814]
[1752030641488,1.32007284,108740.0,108730.0,0.002]
[1752030641690,0.56353879,108730.0,108720.0,0.0275093]
[1752030641901,1.54216654,108730.0,108720.0,0.0275093]
[1752030642100,1.51176654,108730.0,108720.0,0.0275093]
[1752030642301,0.62457572,108730.0,108720.0,0.0434093]
[1752030642478,1.06819113,108730.0,108720.0,0.0599093]
[1752030642674,0.76357572,108730.0,108720.0,0.0599093]
[1752030642880,1.06823784,108730.0,108720.0,0.0599093]
[1752030643083,1.06923784,108730.0,108720.0,0.0619093]
[1752030643301,0.93023784,108730.0,108720.0,0.0619093]
[1752030643524,1.06927784,108730.0,108720.0,0.0619093]
[1752030644572,1.06927784,108730.0,108720.0,0.07699848]
[1752030644977,1.07572797,108730.0,108720.0,0.08777647]
[1752030645332,1.06927784,108730.0,108720.0,0.08777647]
[1752030645937,1.06927784,108730.0,108720.0,0.08777549]
[1752030646635,1.37389325,108730.0,108720.0,0.08777549]
[1752030647708,1.23485325,108730.0,108720.0,0.08777549]
[1752030647847,1.06931784,108730.0,108720.0,0.08777549]
[1752030649827,1.06931784,108730.0,108720.0,0.08666549]
[1752030650177,1.37393325,108730.0,108720.0,0.08666549]
[1752030653221,1.37393325,108730.0,108720.0,0.07016549]
[1752030653697,1.37393325,108730.0,108720.0,0.05426549]
[1752030655662,1.06931784,108730.0,108720.0,0.05426549]
[1752030658234,1.06931784,108730.0,108720.0,0.06946549]
[1752030659532,1.37393325,108730.0,108720.0,0.06946549]
[1752030663218,1.37393325,108730.0,108720.0,0.05426549]
[1752030665280,1.37393325,108730.0,108720.0,0.05426537]
[1752030669595,1.37393325,108730.0,108720.0,0.0542803]
[1752030671270,1.40603325,108730.0,108720.0,0.0542803]
[1752030671573,1.43367825,108730.0,108720.0,0.0542803]
[1752030671989,1.37389325,108730.0,108720.0,0.0852803]
[1752030672594,1.37389325,108730.0,108720.0,0.0542803]
[1752030672807,1.40599325,108730.0,108720.0,0.0542803]
[1752030677891,1.39029325,108730.0,108720.0,0.0542803]
[1752030678091,1.40689325,108730.0,108720.0,0.0542803]
[1752030678495,1.37389325,108730.0,108720.0,0.0542803]
[1752030678916,1.39029325,108730.0,108720.0,0.0542803]
[1752030682680,1.39029325,108730.0,108720.0,0.05428553]
[1752030685980,1.40659325,108730.0,108720.0,0.05428553]
[1752030689297,0.56605656,108720.0,108710.0,0.0002]
[1752030689548,1.84945972,108720.0,108710.0,0.0002]
[1752030689783,0.19317432,108710.0,108700.0,0.00877191]
[1752030689959,1.17200207,108710.0,108700.0,0.00877191]
[1752030690331,1.51200207,108710.0,108700.0,0.00877191]
[1752030690539,1.52830207,108710.0,108700.0,0.00877191]
[1752030691361,1.51300207,108710.0,108700.0,0.01077191]
[1752030691734,1.52102753,108710.0,108700.0,0.00877191]
[1752030692186,0.91179671,108710.0,108700.0,0.00877191]
[1752030692406,1.52202753,108710.0,108700.0,0.00977191]
[1752030692806,1.52202753,108710.0,108700.0,0.00877191]
[1752030692807,1.52102753,108710.0,108700.0,0.00877191]
[1752030693220,1.52402753,108710.0,108700.0,0.00877191]
[1752030693746,1.54362753,108710.0,108700.0,0.00977191]
[1752030694901,1.58647973,108710.0,108700.0,0.00977191]
[1752030697957,1.58647973,108710.0,108680.0,0.03580121]
[1752030697958,0.19320986,108690.0,108680.0,0.03580121]
[1752030698204,0.63766527,108690.0,108680.0,0.03580121]
[1752030699210,0.63866527,108690.0,108680.0,0.03726909]
[1752030699414,0.63966527,108690.0,108680.0,0.03926909]
[1752030701340,0.63966527,108690.0,108680.0,0.06510036]
[1752030705012,0.94428068,108690.0,108680.0,0.06510036]
[1752030705182,1.71163302,108690.0,108680.0,0.03460036]
[1752030705379,1.40701761,108690.0,108680.0,0.01737951]
[1752030705588,1.40701761,108690.0,108680.0,0.0345989]
[1752030705796,1.40701761,108690.0,108680.0,0.01737951]
[1752030706175,1.40601761,108690.0,108680.0,0.01537951]
[1752030706579,1.41001761,108690.0,108680.0,0.01637951]
[1752030707366,1.40901761,108690.0,108680.0,0.01537951]
[1752030707759,1.41001761,108690.0,108680.0,0.01537951]
[1752030708332,1.40901761,108690.0,108680.0,0.01537951]
[1752030710122,1.26917761,108690.0,108680.0,0.01537951]
[1752030710322,1.40901761,108690.0,108680.0,0.01537951]
[1752030710754,0.65994679,108690.0,108680.0,0.01537951]
[1752030710970,1.41101761,108690.0,108680.0,0.01537951]
[1752030713067,1.41101761,108690.0,108680.0,0.00676909]
[1752030713315,1.41101761,108690.0,108680.0,0.01537296]
[1752030713706,1.50245454,108690.0,108680.0,1e-08]
[1752030713902,1.41101761,108690.0,108680.0,1e-08]
[1752030717459,1.44394558,108690.0,108680.0,1e-08]
[1752030717879,1.41101761,108690.0,108680.0,1e-08]
[1752030718284,1.44394797,108690.0,108680.0,1e-08]
[1752030718488,1.41101761,108690.0,108680.0,1e-08]
[1752030720046,1.4288512,108690.0,108680.0,1e-08]
[1752030720247,0.96819579,108690.0,108680.0,0.03150001]
[1752030720475,0.5952622,108690.0,108680.0,0.03150001]
[1752030720648,0.33916986,108690.0,108680.0,0.03150001]
[1752030720871,0.64427706,108690.0,108680.0,0.03150001]
[1752030721659,0.98427706,108690.0,108680.0,0.03150001]
[1752030725137,0.98439706,108690.0,108680.0,0.0315]
[1752030725777,0.98439706,108690.0,108680.0,0.04010913]
[1752030729846,1.07583399,108690.0,108680.0,0.04010913]
[1752030731843,0.77072679,108690.0,108680.0,0.04010913]
[1752030732203,1.07583399,108690.0,108680.0,0.04010913]
[1752030732582,1.07583399,108690.0,108680.0,0.02470913]
[1752030733175,0.77072679,108690.0,108680.0,0.02470913]
[1752030733374,1.07583399,108690.0,108680.0,0.02470913]
[1752030734189,1.07583399,108690.0,108680.0,0.04030913]
[1752030736202,1.07583399,108690.0,108680.0,0.04031797]
[1752030736409,0.77072679,108690.0,108680.0,0.04031797]
[1752030736612,1.07583399,108690.0,108680.0,0.04031797]
[1752030736820,1.07583399,108690.0,108680.0,0.04031767]
[1752030738052,1.07583399,108690.0,108680.0,0.00861767]
[1752030742611,0.19322764,108680.0,108670.0,0.0307]
[1752030742819,0.63830848,108680.0,108670.0,0.03931776]
[1752030743657,0.64030848,108680.0,108670.0,0.04031776]
[1752030744035,0.64130848,108680.0,108670.0,0.04031776]
[1752030745387,0.64130848,108680.0,108670.0,0.04032004]
[1752030752363,0.33614764,108680.0,108670.0,0.04032004]
[1752030752813,0.19622764,108680.0,108670.0,0.04032004]
[1752030753931,0.50138848,108680.0,108670.0,0.04032004]
[1752030755034,0.19622764,108680.0,108670.0,0.04032004]
[1752030755205,0.50138848,108680.0,108670.0,0.04262058]
[1752030755749,0.50138848,108680.0,108670.0,0.04032004]
[1752030756847,0.50138848,108680.0,108670.0,0.0317]
[1752030757048,0.50138848,108680.0,108670.0,0.04033307]
[1752030757252,0.64122848,108680.0,108670.0,0.04033307]
[1752030757597,0.33606764,108680.0,108670.0,0.04033307]
[1752030757799,0.64122848,108680.0,108670.0,0.04033307]
[1752030758393,0.64122848,108680.0,108670.0,0.0317]
[1752030758594,0.64122848,108680.0,108670.0,0.04033326]
[1752030759325,0.64118848,108680.0,108670.0,0.04033326]
[1752030760551,0.94634932,108680.0,108670.0,0.04033326]
[1752030760826,0.94634932,108680.0,108670.0,0.02473326]
[1752030761059,0.94634932,108680.0,108670.0,0.00963326]
[1752030762333,0.64118848,108680.0,108670.0,0.00963326]
[1752030763904,0.94634932,108680.0,108670.0,0.00963326]
[1752030765093,0.96174932,108680.0,108670.0,0.00963326]
[1752030765933,0.96174932,108680.0,108670.0,0.00451326]
[1752030769790,0.35142764,108680.0,108670.0,0.00451326]
[1752030769962,0.96174932,108680.0,108670.0,0.00451326]
[1752030771241,0.19324543,108670.0,108660.0,0.03274]
[1752030771515,0.62900427,108670.0,108660.0,0.03274]
[1752030771724,0.63820627,108670.0,108660.0,0.03274]
[1752030772397,0.63811327,108670.0,108660.0,0.03274]
[1752030772778,0.63911327,108670.0,108660.0,0.03374]
[1752030774254,0.64011327,108670.0,108660.0,0.03474]
[1752030775998,0.33495243,108670.0,108660.0,0.03474]
[1752030776154,0.64011327,108670.0,108660.0,0.03474]